[Event "*** MasterClass Titled Tuesday Blitz"]
[Site "Chess.com"]
[Date "2017.08.01"]
[Round "9"]
[White "dzhumagaliev"]
[Black "1lec"]
[Result "1-0"]
[WhiteElo "2506"]
[BlackElo "2066"]
[TimeControl "180+2"]
[EndTime "15:02:05 PDT"]
[Termination "dzhumagaliev won by resignation"]

1. a4 {[%clk 0:03:01.9]} 1... e5 {[%clk 0:02:59.8]} 2. a5 {[%clk 0:03:02.5]}
2... d5 {[%clk 0:03:00.6]} 3. h4 {[%clk 0:03:03.6]} 3... Nf6 {[%clk 0:02:52.3]}
4. h5 {[%clk 0:03:05.5]} 4... Nc6 {[%clk 0:02:52.9]} 5. c3 {[%clk 0:03:06.4]}
5... Bg4 {[%clk 0:02:22.9]} 6. Qb3 {[%clk 0:03:05.5]} 6... Rb8 {[%clk
0:02:19.2]} 7. h6 {[%clk 0:03:01.9]} 7... gxh6 {[%clk 0:02:12.2]} 8. Nf3 {[%clk
0:03:02.9]} 8... Bg7 {[%clk 0:02:06.9]} 9. d3 {[%clk 0:03:02.2]} 9... h5 {[%clk
0:02:03.9]} 10. Bg5 {[%clk 0:03:02.7]} 10... O-O {[%clk 0:01:35.9]} 11. Nbd2
{[%clk 0:03:03.3]} 11... Qd6 {[%clk 0:01:24.2]} 12. e3 {[%clk 0:03:01.5]} 12...
Rfe8 {[%clk 0:01:21]} 13. Nh2 {[%clk 0:02:56.3]} 13... Qc5 {[%clk 0:00:55.8]}
14. Qa4 {[%clk 0:02:43.6]} 14... Rbd8 {[%clk 0:00:45]} 15. Bxf6 {[%clk
0:02:42.8]} 15... Bxf6 {[%clk 0:00:44.5]} 16. Nxg4 {[%clk 0:02:44.4]} 16... hxg4
{[%clk 0:00:45.9]} 17. Qxg4+ {[%clk 0:02:45.5]} 17... Kf8 {[%clk 0:00:44.4]} 18.
Rxh7 {[%clk 0:02:43.6]} 18... Ke7 {[%clk 0:00:37.4]} 19. Qh5 {[%clk 0:02:31.5]}
19... Rf8 {[%clk 0:00:37.5]} 20. g4 {[%clk 0:02:29.7]} 20... Qd6 {[%clk
0:00:24.4]} 21. g5 {[%clk 0:02:29.9]} 21... Bh8 {[%clk 0:00:24.7]} 22. g6 {[%clk
0:02:30.2]} 22... Qf6 {[%clk 0:00:23.9]} 23. a6 {[%clk 0:02:21.5]} 23... b6
{[%clk 0:00:23.7]} 24. Bh3 {[%clk 0:02:18.4]} 24... Bg7 {[%clk 0:00:20.8]} 25.
Qf5 {[%clk 0:01:55.9]} 25... fxg6 {[%clk 0:00:15.4]} 26. Rxg7+ {[%clk
0:01:53.1]} 1-0

[Event "*** MasterClass Titled Tuesday Blitz"]
[Site "Chess.com"]
[Date "2017.08.01"]
[Round "9"]
[White "Big_Fishy"]
[Black "CookiesAndIceCream"]
[Result "1-0"]
[WhiteElo "2224"]
[BlackElo "2058"]
[TimeControl "180+2"]
[EndTime "15:02:46 PDT"]
[Termination "Big_Fishy won by resignation"]

1. d4 {[%clk 0:03:02]} 1... e6 {[%clk 0:02:59.6]} 2. Nc3 {[%clk 0:03:03.2]} 2...
b6 {[%clk 0:03:00.7]} 3. e4 {[%clk 0:03:03.8]} 3... Bb7 {[%clk 0:03:01.5]} 4.
Be3 {[%clk 0:03:03.5]} 4... Bb4 {[%clk 0:03:01.5]} 5. f3 {[%clk 0:03:02.4]} 5...
d5 {[%clk 0:03:01.8]} 6. e5 {[%clk 0:03:01.7]} 6... Ne7 {[%clk 0:03:00.9]} 7.
Qd2 {[%clk 0:03:01.6]} 7... O-O {[%clk 0:03:00.5]} 8. a3 {[%clk 0:03:00.8]} 8...
Bxc3 {[%clk 0:02:59.4]} 9. bxc3 {[%clk 0:03:02.3]} 9... Nd7 {[%clk 0:02:57.1]}
10. f4 {[%clk 0:03:01.6]} 10... c5 {[%clk 0:02:57.1]} 11. Nf3 {[%clk 0:03:02.3]}
11... a5 {[%clk 0:02:49.5]} 12. a4 {[%clk 0:02:57.3]} 12... Ba6 {[%clk
0:02:48.1]} 13. Bxa6 {[%clk 0:02:55.8]} 13... Rxa6 {[%clk 0:02:49.1]} 14. O-O
{[%clk 0:02:57.1]} 14... Qc7 {[%clk 0:02:47.5]} 15. Rab1 {[%clk 0:02:53.2]}
15... Rc8 {[%clk 0:02:44.6]} 16. Rb2 {[%clk 0:02:34.6]} 16... Nc6 {[%clk
0:02:34.1]} 17. f5 {[%clk 0:02:30.9]} 17... cxd4 {[%clk 0:02:29.9]} 18. cxd4
{[%clk 0:02:13.4]} 18... exf5 {[%clk 0:02:24]} 19. Nh4 {[%clk 0:02:13.8]} 19...
g6 {[%clk 0:02:18.5]} 20. Bg5 {[%clk 0:02:08.1]} 20... Nf8 {[%clk 0:02:14.1]}
21. Bf6 {[%clk 0:02:07.1]} 21... Ne6 {[%clk 0:01:55]} 22. c3 {[%clk 0:02:05.2]}
22... f4 {[%clk 0:01:54.2]} 23. g3 {[%clk 0:01:44.1]} 23... fxg3 {[%clk
0:01:48.1]} 24. hxg3 {[%clk 0:01:44.8]} 24... Nb8 {[%clk 0:01:46.7]} 25. Rf3
{[%clk 0:01:37.9]} 25... Nd7 {[%clk 0:01:35.8]} 26. Qh6 {[%clk 0:01:36.5]} 26...
Qc4 {[%clk 0:01:02.5]} 27. Rh2 {[%clk 0:01:30.8]} 27... Ndf8 {[%clk 0:01:01.6]}
28. Nf5 {[%clk 0:01:18.8]} 28... gxf5 {[%clk 0:00:55.3]} 29. Rxf5 {[%clk
0:01:18.5]} 29... Qd3 {[%clk 0:00:28.5]} 30. Rg5+ {[%clk 0:01:17.9]} 30... Ng6
{[%clk 0:00:22.9]} 31. Qxh7+ {[%clk 0:01:16]} 31... Kf8 {[%clk 0:00:24.1]} 32.
Qh8+ {[%clk 0:01:10.7]} 1-0

[Event "*** MasterClass Titled Tuesday Blitz"]
[Site "Chess.com"]
[Date "2017.08.01"]
[Round "9"]
[White "swayamsm"]
[Black "Malev212"]
[Result "0-1"]
[WhiteElo "2439"]
[BlackElo "2502"]
[TimeControl "180+2"]
[EndTime "15:02:51 PDT"]
[Termination "Malev212 won by checkmate"]

1. d4 {[%clk 0:03:01.9]} 1... d6 {[%clk 0:02:59.3]} 2. Nf3 {[%clk 0:03:01.3]}
2... Nd7 {[%clk 0:02:59.4]} 3. Bf4 {[%clk 0:03:02.2]} 3... g6 {[%clk 0:02:59.4]}
4. e3 {[%clk 0:02:51.2]} 4... Bg7 {[%clk 0:03:00.6]} 5. h4 {[%clk 0:02:45.9]}
5... e5 {[%clk 0:03:00.8]} 6. dxe5 {[%clk 0:02:45.8]} 6... dxe5 {[%clk
0:03:00.7]} 7. Bg3 {[%clk 0:02:46.2]} 7... Nh6 {[%clk 0:02:58.9]} 8. e4 {[%clk
0:02:45.8]} 8... O-O {[%clk 0:02:53.3]} 9. h5 {[%clk 0:02:44.7]} 9... g5 {[%clk
0:02:53.9]} 10. Bc4 {[%clk 0:02:40.2]} 10... Qe7 {[%clk 0:02:52.3]} 11. Qd2
{[%clk 0:02:38.2]} 11... g4 {[%clk 0:02:40.3]} 12. Nh4 {[%clk 0:02:23.5]} 12...
Nc5 {[%clk 0:02:40.3]} 13. Nc3 {[%clk 0:02:22.6]} 13... c6 {[%clk 0:02:40.1]}
14. O-O-O {[%clk 0:02:20.9]} 14... b5 {[%clk 0:02:37.1]} 15. Bb3 {[%clk
0:02:14.1]} 15... b4 {[%clk 0:02:34.5]} 16. Ne2 {[%clk 0:01:58.2]} 16... Nxe4
{[%clk 0:02:29]} 17. Qe3 {[%clk 0:01:59.3]} 17... Nxg3 {[%clk 0:02:23.6]} 18.
Nxg3 {[%clk 0:02:01.2]} 18... Kh8 {[%clk 0:02:24.2]} 19. Kb1 {[%clk 0:01:47.7]}
19... f5 {[%clk 0:02:22.2]} 20. Qd2 {[%clk 0:01:27.2]} 20... e4 {[%clk
0:02:15.4]} 21. Ne2 {[%clk 0:01:22.1]} 21... Qf6 {[%clk 0:02:13.2]} 22. c3
{[%clk 0:01:22.9]} 22... Ba6 {[%clk 0:02:08.7]} 23. Qc2 {[%clk 0:00:32.8]} 23...
Bd3 {[%clk 0:02:02.9]} 24. Rxd3 {[%clk 0:00:32.5]} 24... exd3 {[%clk 0:02:03.8]}
25. Qxd3 {[%clk 0:00:33]} 25... Rad8 {[%clk 0:02:05.2]} 26. Qc2 {[%clk
0:00:31.7]} 26... bxc3 {[%clk 0:02:05.8]} 27. Nxc3 {[%clk 0:00:30.6]} 27... Rb8
{[%clk 0:01:50.6]} 28. g3 {[%clk 0:00:24.6]} 28... a5 {[%clk 0:01:48.6]} 29. Rd1
{[%clk 0:00:19.8]} 29... Rfe8 {[%clk 0:01:46.8]} 30. Ng2 {[%clk 0:00:20.5]}
30... Nf7 {[%clk 0:01:44.1]} 31. Nf4 {[%clk 0:00:21]} 31... Ng5 {[%clk
0:01:43.2]} 32. Rc1 {[%clk 0:00:16.4]} 32... Ne4 {[%clk 0:01:37.6]} 33. Nxe4
{[%clk 0:00:17.5]} 33... Rxe4 {[%clk 0:01:33.9]} 34. Qxc6 {[%clk 0:00:15.7]}
34... Qxb2# {[%clk 0:01:32.4]} 0-1

[Event "*** MasterClass Titled Tuesday Blitz"]
[Site "Chess.com"]
[Date "2017.08.01"]
[Round "9"]
[White "Chess64Surfer"]
[Black "GMKrikor"]
[Result "0-1"]
[WhiteElo "2043"]
[BlackElo "2489"]
[TimeControl "180+2"]
[EndTime "15:03:05 PDT"]
[Termination "GMKrikor won on time"]

1. d4 {[%clk 0:02:57.6]} 1... Nf6 {[%clk 0:03:01.1]} 2. Nf3 {[%clk 0:02:58]}
2... d5 {[%clk 0:03:01.9]} 3. Bf4 {[%clk 0:02:57.9]} 3... c5 {[%clk 0:03:01.7]}
4. e3 {[%clk 0:02:58.3]} 4... Nc6 {[%clk 0:03:02.9]} 5. c3 {[%clk 0:02:58.7]}
5... e6 {[%clk 0:02:50]} 6. Bd3 {[%clk 0:02:58.2]} 6... Nh5 {[%clk 0:02:50]} 7.
Bg3 {[%clk 0:02:58.1]} 7... Qb6 {[%clk 0:02:49.6]} 8. Qb3 {[%clk 0:02:54]} 8...
c4 {[%clk 0:02:46.9]} 9. Qxb6 {[%clk 0:02:53.4]} 9... axb6 {[%clk 0:02:48.8]}
10. Bc2 {[%clk 0:02:53.7]} 10... b5 {[%clk 0:02:49.8]} 11. Nbd2 {[%clk
0:02:47.9]} 11... Nxg3 {[%clk 0:02:45.2]} 12. hxg3 {[%clk 0:02:47.6]} 12... h6
{[%clk 0:02:43.5]} 13. e4 {[%clk 0:02:45.3]} 13... b4 {[%clk 0:02:43.9]} 14.
exd5 {[%clk 0:02:44.6]} 14... exd5 {[%clk 0:02:44.8]} 15. O-O {[%clk 0:02:44.9]}
15... Be6 {[%clk 0:02:37.6]} 16. Rfe1 {[%clk 0:02:31.8]} 16... Be7 {[%clk
0:02:32.4]} 17. Ne5 {[%clk 0:02:23.7]} 17... Nxe5 {[%clk 0:02:20]} 18. Rxe5
{[%clk 0:02:21.9]} 18... O-O {[%clk 0:02:18.6]} 19. f4 {[%clk 0:01:36.5]} 19...
Bf6 {[%clk 0:02:12.2]} 20. Ree1 {[%clk 0:01:35.2]} 20... bxc3 {[%clk 0:02:13.5]}
21. bxc3 {[%clk 0:01:35.2]} 21... Ra3 {[%clk 0:02:14.8]} 22. Nb1 {[%clk
0:01:03.9]} 22... Rxc3 {[%clk 0:02:12.7]} 23. Nxc3 {[%clk 0:00:22.4]} 23...
Bxd4+ {[%clk 0:02:13.6]} 24. Re3 {[%clk 0:00:23]} 24... Bxe3+ {[%clk 0:02:08.1]}
25. Kf1 {[%clk 0:00:20.1]} 25... d4 {[%clk 0:02:09.3]} 26. Nb5 {[%clk
0:00:16.4]} 26... d3 {[%clk 0:02:09.7]} 27. Bd1 {[%clk 0:00:16.1]} 27... Bd7
{[%clk 0:02:06.7]} 28. Nd6 {[%clk 0:00:14.4]} 28... c3 {[%clk 0:02:05.8]} 29.
Nc4 {[%clk 0:00:09.8]} 29... Bd4 {[%clk 0:02:04.2]} 30. Rc1 {[%clk 0:00:08.2]}
30... c2 {[%clk 0:01:57.1]} 31. Bf3 {[%clk 0:00:08.3]} 31... Rc8 {[%clk
0:01:42.2]} 32. Ne5 {[%clk 0:00:05.7]} 32... Bxe5 {[%clk 0:01:42.3]} 33. fxe5
{[%clk 0:00:04.5]} 33... d2 {[%clk 0:01:43.1]} 0-1

[Event "*** MasterClass Titled Tuesday Blitz"]
[Site "Chess.com"]
[Date "2017.08.01"]
[Round "9"]
[White "Rbrrt"]
[Black "GrigorGrigorov"]
[Result "0-1"]
[WhiteElo "2330"]
[BlackElo "2610"]
[TimeControl "180+2"]
[EndTime "15:03:43 PDT"]
[Termination "GrigorGrigorov won by resignation"]

1. e4 {[%clk 0:03:01.9]} 1... c5 {[%clk 0:03:00.5]} 2. Nf3 {[%clk 0:03:02.9]}
2... d6 {[%clk 0:03:01.8]} 3. d4 {[%clk 0:03:04.5]} 3... cxd4 {[%clk 0:03:02.8]}
4. Nxd4 {[%clk 0:03:06.4]} 4... Nf6 {[%clk 0:03:04.3]} 5. Nc3 {[%clk 0:03:07.5]}
5... a6 {[%clk 0:03:05.6]} 6. h3 {[%clk 0:03:09]} 6... e5 {[%clk 0:03:06.2]} 7.
Nde2 {[%clk 0:03:10.5]} 7... h5 {[%clk 0:03:07.3]} 8. Bg5 {[%clk 0:03:10.4]}
8... Be6 {[%clk 0:03:08.3]} 9. Bxf6 {[%clk 0:03:11.3]} 9... Qxf6 {[%clk
0:03:09.4]} 10. Nd5 {[%clk 0:03:12.9]} 10... Qd8 {[%clk 0:03:10.5]} 11. c4
{[%clk 0:03:11.5]} 11... Nc6 {[%clk 0:03:08.4]} 12. Qd3 {[%clk 0:03:11.1]} 12...
g6 {[%clk 0:03:06.7]} 13. g3 {[%clk 0:02:20.9]} 13... h4 {[%clk 0:03:06.1]} 14.
g4 {[%clk 0:02:22.7]} 14... Bh6 {[%clk 0:03:06.8]} 15. Bg2 {[%clk 0:02:20.9]}
15... O-O {[%clk 0:03:06.6]} 16. O-O {[%clk 0:02:21]} 16... Rc8 {[%clk
0:03:05.5]} 17. a3 {[%clk 0:02:17.5]} 17... Kg7 {[%clk 0:03:03.8]} 18. b4 {[%clk
0:02:13.7]} 18... Bg5 {[%clk 0:03:00.5]} 19. f4 {[%clk 0:02:13.2]} 19... exf4
{[%clk 0:03:00.6]} 20. c5 {[%clk 0:01:15.6]} 20... Ne5 {[%clk 0:02:51.2]} 21.
Qd4 {[%clk 0:01:10.4]} 21... f6 {[%clk 0:02:19]} 22. Nexf4 {[%clk 0:00:58.9]}
22... Bf7 {[%clk 0:02:18.4]} 23. Rab1 {[%clk 0:00:57.9]} 23... Re8 {[%clk
0:01:47.3]} 24. a4 {[%clk 0:00:50.6]} 24... a5 {[%clk 0:01:45.1]} 25. cxd6
{[%clk 0:00:46.5]} 25... Rc4 {[%clk 0:01:35.1]} 26. Qa7 {[%clk 0:00:47]} 26...
axb4 {[%clk 0:01:30.2]} 27. Nc7 {[%clk 0:00:45.6]} 27... Rxc7 {[%clk 0:01:19.5]}
28. dxc7 {[%clk 0:00:43.7]} 28... Qxc7 {[%clk 0:01:20.7]} 29. Rxb4 {[%clk
0:00:40.6]} 29... Bxf4 {[%clk 0:01:10.1]} 30. Rxf4 {[%clk 0:00:30.2]} 30... Nc6
{[%clk 0:00:59.5]} 31. Qxb7 {[%clk 0:00:18.2]} 31... Qxf4 {[%clk 0:00:57]} 32.
Qxc6 {[%clk 0:00:19.4]} 32... Qe3+ {[%clk 0:00:53.9]} 33. Kh1 {[%clk 0:00:07.1]}
33... Qe1+ {[%clk 0:00:54]} 34. Kh2 {[%clk 0:00:05.1]} 0-1

[Event "*** MasterClass Titled Tuesday Blitz"]
[Site "Chess.com"]
[Date "2017.08.01"]
[Round "9"]
[White "Rumpel-VK"]
[Black "Witik"]
[Result "0-1"]
[WhiteElo "2476"]
[BlackElo "2591"]
[TimeControl "180+2"]
[EndTime "15:03:50 PDT"]
[Termination "Witik won on time"]

1. d4 {[%clk 0:03:00.2]} 1... Nf6 {[%clk 0:03:00.6]} 2. c4 {[%clk 0:03:00.8]}
2... e6 {[%clk 0:03:01.7]} 3. Nf3 {[%clk 0:03:01.1]} 3... d5 {[%clk 0:03:02.6]}
4. Nc3 {[%clk 0:03:01.4]} 4... dxc4 {[%clk 0:03:03.2]} 5. e3 {[%clk 0:02:59.6]}
5... a6 {[%clk 0:03:00.4]} 6. a4 {[%clk 0:02:58.7]} 6... c5 {[%clk 0:02:56.1]}
7. Bxc4 {[%clk 0:02:58.4]} 7... Nc6 {[%clk 0:02:55.7]} 8. O-O {[%clk 0:02:58.4]}
8... cxd4 {[%clk 0:02:41.6]} 9. exd4 {[%clk 0:02:58.6]} 9... Nb4 {[%clk
0:02:38.6]} 10. Bg5 {[%clk 0:02:58.2]} 10... Be7 {[%clk 0:02:37.5]} 11. Re1
{[%clk 0:02:51.2]} 11... O-O {[%clk 0:02:36.1]} 12. Qe2 {[%clk 0:02:40.3]} 12...
b6 {[%clk 0:02:32.1]} 13. Rad1 {[%clk 0:01:57.8]} 13... Ra7 {[%clk 0:02:05.2]}
14. Ne5 {[%clk 0:01:54.5]} 14... Rc7 {[%clk 0:01:52.2]} 15. Bf4 {[%clk 0:01:35]}
15... Nbd5 {[%clk 0:01:35.9]} 16. Nxd5 {[%clk 0:01:28.3]} 16... Nxd5 {[%clk
0:01:34.8]} 17. Bxd5 {[%clk 0:01:19.8]} 17... Qxd5 {[%clk 0:01:33.3]} 18. Nxf7
{[%clk 0:00:52.8]} 18... Bb7 {[%clk 0:01:22.4]} 19. Qg4 {[%clk 0:00:47]} 19...
Rcc8 {[%clk 0:01:08.9]} 20. Nh6+ {[%clk 0:00:34]} 20... Kh8 {[%clk 0:01:09.2]}
21. Be5 {[%clk 0:00:33.6]} 21... Bf6 {[%clk 0:00:57.8]} 22. Bxf6 {[%clk
0:00:09.5]} 22... Rxf6 {[%clk 0:00:57.6]} 23. Re5 {[%clk 0:00:10.9]} 23... Qc6
{[%clk 0:00:49.5]} 24. d5 {[%clk 0:00:11.4]} 24... Qc5 {[%clk 0:00:37.6]} 25.
Rf1 {[%clk 0:00:05.7]} 25... Bxd5 {[%clk 0:00:31.9]} 26. b4 {[%clk 0:00:05.2]}
26... Qxf2+ {[%clk 0:00:22.3]} 0-1

[Event "*** MasterClass Titled Tuesday Blitz"]
[Site "Chess.com"]
[Date "2017.08.01"]
[Round "9"]
[White "attack2mateU"]
[Black "Sharafiev_Azat"]
[Result "0-1"]
[WhiteElo "2483"]
[BlackElo "2361"]
[TimeControl "180+2"]
[EndTime "15:03:57 PDT"]
[Termination "Sharafiev_Azat won by resignation"]

1. e4 {[%clk 0:03:01.9]} 1... c5 {[%clk 0:02:38.9]} 2. Nf3 {[%clk 0:03:02.8]}
2... d6 {[%clk 0:02:40.4]} 3. d4 {[%clk 0:03:04.2]} 3... cxd4 {[%clk 0:02:41.9]}
4. Nxd4 {[%clk 0:03:05.9]} 4... Nf6 {[%clk 0:02:42.9]} 5. Nc3 {[%clk 0:03:07.5]}
5... a6 {[%clk 0:02:44.3]} 6. h3 {[%clk 0:03:07.6]} 6... e5 {[%clk 0:02:44.6]}
7. Nde2 {[%clk 0:03:07.5]} 7... b5 {[%clk 0:02:45.8]} 8. Bg5 {[%clk 0:03:07.1]}
8... Bb7 {[%clk 0:02:43.3]} 9. Bxf6 {[%clk 0:02:59.6]} 9... Qxf6 {[%clk
0:02:43.3]} 10. Nd5 {[%clk 0:03:01.1]} 10... Qd8 {[%clk 0:02:36.6]} 11. Nec3
{[%clk 0:03:01.3]} 11... Nd7 {[%clk 0:02:37.1]} 12. a4 {[%clk 0:02:56.6]} 12...
bxa4 {[%clk 0:02:28.1]} 13. Rxa4 {[%clk 0:02:56.7]} 13... Nc5 {[%clk 0:02:27.8]}
14. Rc4 {[%clk 0:02:56]} 14... Be7 {[%clk 0:02:27.4]} 15. b4 {[%clk 0:02:35.6]}
15... Ne6 {[%clk 0:02:21.8]} 16. Be2 {[%clk 0:02:19.6]} 16... O-O {[%clk
0:02:18.6]} 17. O-O {[%clk 0:02:20.7]} 17... Bg5 {[%clk 0:02:17.2]} 18. g3
{[%clk 0:02:05.4]} 18... Rc8 {[%clk 0:02:12.5]} 19. f4 {[%clk 0:02:03.7]} 19...
exf4 {[%clk 0:02:00.9]} 20. gxf4 {[%clk 0:02:05.6]} 20... Bxf4 {[%clk
0:01:14.3]} 21. Nxf4 {[%clk 0:01:59.5]} 21... Nxf4 {[%clk 0:01:14.1]} 22. Rxf4
{[%clk 0:01:58.5]} 22... Qg5+ {[%clk 0:01:15.7]} 23. Rg4 {[%clk 0:01:59.1]}
23... Qe3+ {[%clk 0:01:17.2]} 24. Kf1 {[%clk 0:01:17.9]} 24... Qxh3+ {[%clk
0:01:07.3]} 25. Rg2 {[%clk 0:01:01.7]} 25... Rxc4 {[%clk 0:01:07.3]} 26. Bxc4
{[%clk 0:01:03.6]} 26... Qxc3 {[%clk 0:01:08.2]} 27. Qd3 {[%clk 0:00:58.7]}
27... Qxb4 {[%clk 0:00:55]} 28. c3 {[%clk 0:00:34]} 28... Qc5 {[%clk 0:00:48.2]}
29. Rf2 {[%clk 0:00:34.8]} 29... Qe5 {[%clk 0:00:41.1]} 30. Bxa6 {[%clk
0:00:30.6]} 30... Bxa6 {[%clk 0:00:35]} 31. Qxa6 {[%clk 0:00:31.5]} 31... Qxe4
{[%clk 0:00:30.4]} 32. Qxd6 {[%clk 0:00:31.5]} 32... Qh1+ {[%clk 0:00:26.5]} 33.
Ke2 {[%clk 0:00:32.2]} 33... Re8+ {[%clk 0:00:28.1]} 34. Kd3 {[%clk 0:00:33.2]}
34... Qe4+ {[%clk 0:00:20.3]} 35. Kd2 {[%clk 0:00:34]} 35... Qe1+ {[%clk
0:00:21.5]} 0-1

[Event "*** MasterClass Titled Tuesday Blitz"]
[Site "Chess.com"]
[Date "2017.08.01"]
[Round "9"]
[White "Cocovitsch007"]
[Black "El-Ajedrecista"]
[Result "0-1"]
[WhiteElo "2186"]
[BlackElo "1838"]
[TimeControl "180+2"]
[EndTime "15:04:09 PDT"]
[Termination "El-Ajedrecista won by checkmate"]

1. d4 {[%clk 0:03:01.9]} 1... Nf6 {[%clk 0:03:00.7]} 2. c4 {[%clk 0:03:02.5]}
2... g6 {[%clk 0:03:01.3]} 3. Nc3 {[%clk 0:03:03.1]} 3... d5 {[%clk 0:03:02.5]}
4. cxd5 {[%clk 0:03:03.3]} 4... Nxd5 {[%clk 0:03:04.4]} 5. e4 {[%clk 0:03:04.4]}
5... Nxc3 {[%clk 0:03:05.5]} 6. bxc3 {[%clk 0:03:05.5]} 6... Bg7 {[%clk
0:03:07]} 7. Bc4 {[%clk 0:03:03.9]} 7... c5 {[%clk 0:03:05.2]} 8. Ne2 {[%clk
0:03:04.2]} 8... O-O {[%clk 0:03:03.9]} 9. Be3 {[%clk 0:03:04.7]} 9... cxd4
{[%clk 0:03:04.8]} 10. cxd4 {[%clk 0:03:05.3]} 10... Nc6 {[%clk 0:03:05.6]} 11.
Rc1 {[%clk 0:03:05.9]} 11... Qa5+ {[%clk 0:03:02.4]} 12. Kf1 {[%clk 0:03:06.1]}
12... Bd7 {[%clk 0:02:07.4]} 13. h4 {[%clk 0:03:05.7]} 13... h5 {[%clk
0:01:45.6]} 14. Nf4 {[%clk 0:02:50.5]} 14... e6 {[%clk 0:01:39.3]} 15. e5 {[%clk
0:02:36.4]} 15... Rad8 {[%clk 0:01:36.4]} 16. Rh3 {[%clk 0:01:57.1]} 16... Ne7
{[%clk 0:01:29]} 17. g4 {[%clk 0:01:48.6]} 17... hxg4 {[%clk 0:01:26.5]} 18.
Qxg4 {[%clk 0:01:48.9]} 18... Bb5 {[%clk 0:01:11.3]} 19. Kg1 {[%clk 0:01:21.8]}
19... Bxc4 {[%clk 0:01:05.2]} 20. Rxc4 {[%clk 0:01:22.2]} 20... Qxa2 {[%clk
0:00:43.8]} 21. Rc7 {[%clk 0:01:20]} 21... Qb1+ {[%clk 0:00:43.5]} 22. Kh2
{[%clk 0:01:17.8]} 22... Nd5 {[%clk 0:00:22.9]} 23. Nxg6 {[%clk 0:01:10.2]}
23... Qxg6 {[%clk 0:00:21.9]} 24. Qf3 {[%clk 0:01:10.6]} 24... Nxc7 {[%clk
0:00:21.9]} 25. Rg3 {[%clk 0:01:10.8]} 25... Qf5 {[%clk 0:00:18.5]} 26. Qg2
{[%clk 0:01:04.5]} 26... Qh7 {[%clk 0:00:11.2]} 27. h5 {[%clk 0:01:04.8]} 27...
Kh8 {[%clk 0:00:08]} 28. h6 {[%clk 0:01:05.7]} 28... Rg8 {[%clk 0:00:07.3]} 29.
Qxb7 {[%clk 0:00:48.2]} 29... Bxh6 {[%clk 0:00:07.7]} 30. Rh3 {[%clk 0:00:45.2]}
30... Rg6 {[%clk 0:00:05.2]} 31. Qxc7 {[%clk 0:00:45.9]} 31... Rdg8 {[%clk
0:00:06.3]} 32. Qc6 {[%clk 0:00:23.4]} 32... Qg7 {[%clk 0:00:06.9]} 33. Bxh6
{[%clk 0:00:18.4]} 33... Rxh6 {[%clk 0:00:08.1]} 34. Rxh6+ {[%clk 0:00:16.9]}
34... Qxh6# {[%clk 0:00:10]} 0-1

[Event "*** MasterClass Titled Tuesday Blitz"]
[Site "Chess.com"]
[Date "2017.08.01"]
[Round "9"]
[White "IvaVidenova"]
[Black "Jungle_Jaguar"]
[Result "0-1"]
[WhiteElo "2417"]
[BlackElo "2348"]
[TimeControl "180+2"]
[EndTime "15:04:14 PDT"]
[Termination "Jungle_Jaguar won by resignation"]

1. e4 {[%clk 0:02:58.7]} 1... c5 {[%clk 0:02:56.3]} 2. Nf3 {[%clk 0:02:59.5]}
2... Nc6 {[%clk 0:02:56.3]} 3. d4 {[%clk 0:03:00.6]} 3... cxd4 {[%clk 0:02:57]}
4. Nxd4 {[%clk 0:03:02.5]} 4... Qc7 {[%clk 0:02:58.5]} 5. Nc3 {[%clk 0:03:03]}
5... e6 {[%clk 0:02:59.2]} 6. Be3 {[%clk 0:03:00.6]} 6... a6 {[%clk 0:03:00.5]}
7. Be2 {[%clk 0:02:59.3]} 7... Nf6 {[%clk 0:03:00]} 8. O-O {[%clk 0:02:55.7]}
8... Bb4 {[%clk 0:02:54.7]} 9. Na4 {[%clk 0:02:53.7]} 9... O-O {[%clk
0:02:55.5]} 10. Nxc6 {[%clk 0:02:54]} 10... bxc6 {[%clk 0:02:56.2]} 11. Nb6
{[%clk 0:02:54.5]} 11... Rb8 {[%clk 0:02:57.7]} 12. Nxc8 {[%clk 0:02:53.2]}
12... Rfxc8 {[%clk 0:02:59.3]} 13. f4 {[%clk 0:02:39.5]} 13... Nxe4 {[%clk
0:02:41.1]} 14. f5 {[%clk 0:02:30.4]} 14... Bd6 {[%clk 0:02:37.1]} 15. Rf3
{[%clk 0:01:57.3]} 15... Bxh2+ {[%clk 0:02:36.5]} 16. Kf1 {[%clk 0:01:56.2]}
16... Ng3+ {[%clk 0:02:34.4]} 17. Kf2 {[%clk 0:01:57]} 17... Nxf5 {[%clk
0:02:35.7]} 18. g4 {[%clk 0:01:49.8]} 18... Nxe3 {[%clk 0:02:32]} 19. Rxe3
{[%clk 0:01:50.6]} 19... Qb6 {[%clk 0:02:18.3]} 20. Kf3 {[%clk 0:01:41.1]} 20...
d5 {[%clk 0:02:13.2]} 21. Bd3 {[%clk 0:01:38.9]} 21... e5 {[%clk 0:02:04.4]} 22.
Bxh7+ {[%clk 0:01:37]} 22... Kf8 {[%clk 0:01:48.4]} 23. Bf5 {[%clk 0:01:21.6]}
23... Bf4 {[%clk 0:01:46.3]} 24. Rb3 {[%clk 0:01:19.1]} 24... e4+ {[%clk
0:01:26.8]} 25. Kg2 {[%clk 0:01:04.7]} 25... Qc7 {[%clk 0:01:07]} 26. Qh1 {[%clk
0:00:53.3]} 26... Rxb3 {[%clk 0:00:40.8]} 27. axb3 {[%clk 0:00:53.7]} 27... Re8
{[%clk 0:00:40.5]} 28. Rxa6 {[%clk 0:00:45.5]} 28... g6 {[%clk 0:00:40.2]} 29.
Bxg6 {[%clk 0:00:38.6]} 29... Be5 {[%clk 0:00:28.9]} 30. Bf5 {[%clk 0:00:34.6]}
30... e3 {[%clk 0:00:28.7]} 31. Qh6+ {[%clk 0:00:31.1]} 31... Bg7 {[%clk
0:00:29.6]} 32. Qh1 {[%clk 0:00:22.9]} 32... Qf4 {[%clk 0:00:27.7]} 33. Qf1
{[%clk 0:00:21.3]} 33... Qxf1+ {[%clk 0:00:24.7]} 34. Kxf1 {[%clk 0:00:23.2]}
34... e2+ {[%clk 0:00:26.1]} 35. Ke1 {[%clk 0:00:24.3]} 35... Bf6 {[%clk
0:00:27.5]} 36. Ra1 {[%clk 0:00:17.1]} 36... Bxb2 {[%clk 0:00:25.1]} 0-1